[Event "Early-Titled-Tuesday-Blitz-February-13-2024"]
[Site "Chess.com"]
[Date "2024.02.13"]
[Round "6"]
[White "WhiteKnight2612"]
[Black "maicolbenavides"]
[Result "1-0"]
[WhiteElo "2876"]
[BlackElo "2533"]
[TimeControl "180+1"]
[EndTime "9:09:59 PST"]
[Termination "WhiteKnight2612 won on time"]

1. d4 {[%clk 0:03:00.9]} 1... Nf6 {[%clk 0:02:52.2]} 2. c4 {[%clk 0:03:00.4]}
2... c5 {[%clk 0:02:51.7]} 3. d5 {[%clk 0:02:59.7]} 3... b5 {[%clk 0:02:50.6]}
4. cxb5 {[%clk 0:02:59.2]} 4... a6 {[%clk 0:02:50.8]} 5. e3 {[%clk 0:02:58.2]}
5... axb5 {[%clk 0:02:39.6]} 6. Bxb5 {[%clk 0:02:59.1]} 6... Qa5+ {[%clk
0:02:39.3]} 7. Nc3 {[%clk 0:02:57.3]} 7... Ba6 {[%clk 0:02:20.7]} 8. Bxa6 {[%clk
0:02:55.2]} 8... Qxa6 {[%clk 0:02:21.6]} 9. Nge2 {[%clk 0:02:54.4]} 9... d6
{[%clk 0:02:22]} 10. O-O {[%clk 0:02:54.3]} 10... g6 {[%clk 0:02:22.6]} 11. e4
{[%clk 0:02:50]} 11... Bg7 {[%clk 0:02:22.9]} 12. a4 {[%clk 0:02:45.4]} 12...
O-O {[%clk 0:02:21.6]} 13. Ra3 {[%clk 0:02:46]} 13... Qc4 {[%clk 0:02:16.9]} 14.
Qc2 {[%clk 0:02:40.4]} 14... Na6 {[%clk 0:02:14.1]} 15. b3 {[%clk 0:02:39.7]}
15... Nb4 {[%clk 0:02:12.3]} 16. Qb1 {[%clk 0:02:30.4]} 16... Qd3 {[%clk
0:02:08.2]} 17. Qxd3 {[%clk 0:02:27.8]} 17... Nxd3 {[%clk 0:02:09.1]} 18. Bd2
{[%clk 0:02:25]} 18... Rfb8 {[%clk 0:02:07.3]} 19. f3 {[%clk 0:02:24.6]} 19...
Nd7 {[%clk 0:01:47]} 20. Rb1 {[%clk 0:02:19.4]} 20... Rb7 {[%clk 0:01:15.4]} 21.
Kf1 {[%clk 0:02:18]} 21... Rab8 {[%clk 0:00:54]} 22. a5 {[%clk 0:02:15.1]} 22...
Ra8 {[%clk 0:00:48.3]} 23. Rba1 {[%clk 0:02:01.7]} 23... Nb4 {[%clk 0:00:41.2]}
24. Ra4 {[%clk 0:01:57.5]} 24... Ne5 {[%clk 0:00:33.8]} 25. f4 {[%clk
0:01:18.3]} 25... Ned3 {[%clk 0:00:31.8]} 26. g3 {[%clk 0:01:01.4]} 26... Nc2
{[%clk 0:00:25.8]} 27. R1a2 {[%clk 0:00:56.8]} 27... Ndb4 {[%clk 0:00:22.3]} 28.
a6 {[%clk 0:00:32.1]} 28... Rba7 {[%clk 0:00:20.4]} 29. Nb5 {[%clk 0:00:31]}
29... Rxa6 {[%clk 0:00:15.5]} 30. Nc7 {[%clk 0:00:31.2]} 30... Nxa2 {[%clk
0:00:07.1]} 31. Nxa8 {[%clk 0:00:30.9]} 31... Rxa4 {[%clk 0:00:05.2]} 32. bxa4
{[%clk 0:00:31.8]} 32... Nab4 {[%clk 0:00:04.8]} 33. Nc7 {[%clk 0:00:31]} 33...
Kf8 {[%clk 0:00:04.6]} 34. a5 {[%clk 0:00:31.1]} 34... Na3 {[%clk 0:00:01.6]}
35. a6 {[%clk 0:00:22.7]} 1-0

[Event "Early-Titled-Tuesday-Blitz-February-13-2024"]
[Site "Chess.com"]
[Date "2024.02.13"]
[Round "6"]
[White "ErikRonka"]
[Black "karinachess1"]
[Result "1-0"]
[WhiteElo "2541"]
[BlackElo "2668"]
[TimeControl "180+1"]
[EndTime "9:09:59 PST"]
[Termination "ErikRonka won on time"]

1. e4 {[%clk 0:03:00.9]} 1... e5 {[%clk 0:02:59.1]} 2. Nf3 {[%clk 0:03:01.2]}
2... Nc6 {[%clk 0:02:59]} 3. Bb5 {[%clk 0:03:01.8]} 3... Nf6 {[%clk 0:02:58.7]}
4. O-O {[%clk 0:03:01.4]} 4... Nxe4 {[%clk 0:02:58.6]} 5. Re1 {[%clk 0:03:02]}
5... Nd6 {[%clk 0:02:58.4]} 6. Nxe5 {[%clk 0:03:02.6]} 6... Nxe5 {[%clk
0:02:58.5]} 7. Rxe5+ {[%clk 0:03:01.9]} 7... Be7 {[%clk 0:02:59.1]} 8. Bf1
{[%clk 0:03:02.4]} 8... O-O {[%clk 0:02:59.5]} 9. d4 {[%clk 0:03:03.1]} 9... Ne8
{[%clk 0:02:59.9]} 10. d5 {[%clk 0:03:02.2]} 10... d6 {[%clk 0:02:53.5]} 11. Re1
{[%clk 0:03:02.3]} 11... Bf6 {[%clk 0:02:54.2]} 12. Nd2 {[%clk 0:02:58.6]} 12...
g6 {[%clk 0:02:54.4]} 13. Ne4 {[%clk 0:02:58]} 13... Bg7 {[%clk 0:02:53]} 14.
Bg5 {[%clk 0:02:53.6]} 14... f6 {[%clk 0:02:46.3]} 15. Bd2 {[%clk 0:02:44.5]}
15... c6 {[%clk 0:02:41]} 16. Bc3 {[%clk 0:02:36.2]} 16... c5 {[%clk 0:02:28.8]}
17. Bc4 {[%clk 0:02:07.4]} 17... Bd7 {[%clk 0:02:10.8]} 18. a4 {[%clk
0:02:06.7]} 18... f5 {[%clk 0:02:11.1]} 19. Bxg7 {[%clk 0:02:03.7]} 19... Nxg7
{[%clk 0:02:04.8]} 20. Nxd6 {[%clk 0:01:42.7]} 20... Qb6 {[%clk 0:01:50.1]} 21.
Nb5 {[%clk 0:01:36.8]} 21... Bxb5 {[%clk 0:01:45.5]} 22. axb5 {[%clk 0:01:30.4]}
22... Rad8 {[%clk 0:01:41.9]} 23. Qf3 {[%clk 0:01:17.4]} 23... Rd7 {[%clk
0:01:29.3]} 24. Qa3 {[%clk 0:01:14]} 24... Ra8 {[%clk 0:01:25.5]} 25. Re2 {[%clk
0:01:09.6]} 25... Qd6 {[%clk 0:01:10.3]} 26. Rae1 {[%clk 0:01:06.8]} 26... b6
{[%clk 0:01:10.5]} 27. Qh3 {[%clk 0:00:56]} 27... Rf8 {[%clk 0:01:06.4]} 28. Qh4
{[%clk 0:00:53.3]} 28... f4 {[%clk 0:00:58.2]} 29. Re6 {[%clk 0:00:26.1]} 29...
Nxe6 {[%clk 0:00:49.5]} 30. Rxe6 {[%clk 0:00:26.1]} 30... Qb8 {[%clk 0:00:32.1]}
31. Qg5 {[%clk 0:00:25]} 31... Rg7 {[%clk 0:00:26.2]} 32. h3 {[%clk 0:00:23.8]}
32... Qd8 {[%clk 0:00:23.8]} 33. Qe5 {[%clk 0:00:23.2]} 33... f3 {[%clk
0:00:20.7]} 34. d6 {[%clk 0:00:20.3]} 34... Rgf7 {[%clk 0:00:01.3]} 35. Re7
{[%clk 0:00:19.1]} 1-0

[Event "Early-Titled-Tuesday-Blitz-February-13-2024"]
[Site "Chess.com"]
[Date "2024.02.13"]
[Round "6"]
[White "AryanTari"]
[Black "FairChess_on_YouTube"]
[Result "0-1"]
[WhiteElo "2931"]
[BlackElo "3086"]
[TimeControl "180+1"]
[EndTime "9:10:00 PST"]
[Termination "FairChess_on_YouTube won on time"]

1. e4 {[%clk 0:03:00.9]} 1... c5 {[%clk 0:02:57.2]} 2. Nf3 {[%clk 0:02:59.8]}
2... e6 {[%clk 0:02:57.5]} 3. d4 {[%clk 0:02:48.8]} 3... cxd4 {[%clk 0:02:58.4]}
4. Nxd4 {[%clk 0:02:47.6]} 4... Nc6 {[%clk 0:02:58.4]} 5. Bf4 {[%clk 0:02:47.1]}
5... Qf6 {[%clk 0:02:40.4]} 6. Be3 {[%clk 0:02:44.5]} 6... a6 {[%clk 0:02:29.4]}
7. Be2 {[%clk 0:02:32.8]} 7... Bc5 {[%clk 0:02:19]} 8. c3 {[%clk 0:02:31.8]}
8... Nge7 {[%clk 0:02:08.2]} 9. O-O {[%clk 0:02:28.9]} 9... d6 {[%clk
0:02:03.3]} 10. b4 {[%clk 0:02:21.1]} 10... Bxd4 {[%clk 0:01:48.7]} 11. cxd4
{[%clk 0:02:22]} 11... O-O {[%clk 0:01:39.5]} 12. Nd2 {[%clk 0:02:09.4]} 12...
Nxd4 {[%clk 0:01:36.1]} 13. Nc4 {[%clk 0:02:06.5]} 13... Nec6 {[%clk 0:01:25.2]}
14. Nb6 {[%clk 0:01:55.1]} 14... Rb8 {[%clk 0:01:22.7]} 15. Rc1 {[%clk
0:01:54.6]} 15... e5 {[%clk 0:01:18]} 16. Nd5 {[%clk 0:01:50.3]} 16... Qd8
{[%clk 0:01:17]} 17. a4 {[%clk 0:01:40.8]} 17... Be6 {[%clk 0:01:16]} 18. b5
{[%clk 0:01:40.8]} 18... axb5 {[%clk 0:01:14.8]} 19. axb5 {[%clk 0:01:41.7]}
19... Nxe2+ {[%clk 0:01:06.2]} 20. Qxe2 {[%clk 0:01:41]} 20... Bxd5 {[%clk
0:01:06.8]} 21. exd5 {[%clk 0:01:40.9]} 21... Ne7 {[%clk 0:01:02.2]} 22. Rfd1
{[%clk 0:01:40.9]} 22... Qd7 {[%clk 0:01:01.3]} 23. h3 {[%clk 0:01:35.5]} 23...
Rfc8 {[%clk 0:00:59.3]} 24. Ra1 {[%clk 0:00:55.5]} 24... h6 {[%clk 0:00:57.6]}
25. Ra7 {[%clk 0:00:54.5]} 25... Rc3 {[%clk 0:00:47.8]} 26. Qb2 {[%clk
0:00:30.5]} 26... Rbc8 {[%clk 0:00:43.5]} 27. b6 {[%clk 0:00:30.1]} 27... Nf5
{[%clk 0:00:41.2]} 28. Ra8 {[%clk 0:00:26]} 28... Kh7 {[%clk 0:00:30.4]} 29.
Rxc8 {[%clk 0:00:18.7]} 29... Qxc8 {[%clk 0:00:31.3]} 30. Bd2 {[%clk 0:00:14.7]}
30... Rc2 {[%clk 0:00:24]} 31. Qb1 {[%clk 0:00:14.7]} 31... Qc4 {[%clk
0:00:20.6]} 32. Bb4 {[%clk 0:00:10.3]} 32... g6 {[%clk 0:00:19.8]} 33. Ba3
{[%clk 0:00:04]} 33... Qe2 {[%clk 0:00:19.6]} 34. Rf1 {[%clk 0:00:03.2]} 34...
Ne3 {[%clk 0:00:20]} 0-1

[Event "Early-Titled-Tuesday-Blitz-February-13-2024"]
[Site "Chess.com"]
[Date "2024.02.13"]
[Round "6"]
[White "esrosenberg"]
[Black "GlavkonVVS"]
[Result "1-0"]
[WhiteElo "2426"]
[BlackElo "2581"]
[TimeControl "180+1"]
[EndTime "9:10:04 PST"]
[Termination "esrosenberg won by checkmate"]

1. d4 {[%clk 0:02:57.7]} 1... Nf6 {[%clk 0:02:59.9]} 2. Bg5 {[%clk 0:02:55]}
2... c5 {[%clk 0:02:58.6]} 3. Bxf6 {[%clk 0:02:54.1]} 3... gxf6 {[%clk
0:02:58.4]} 4. d5 {[%clk 0:02:54.5]} 4... Qb6 {[%clk 0:02:57.9]} 5. Nf3 {[%clk
0:02:36.7]} 5... Qxb2 {[%clk 0:02:56.1]} 6. Nbd2 {[%clk 0:02:37.4]} 6... Qc3
{[%clk 0:02:47]} 7. Rb1 {[%clk 0:02:35]} 7... f5 {[%clk 0:02:37.8]} 8. e3 {[%clk
0:02:34.9]} 8... Bg7 {[%clk 0:02:35]} 9. Bd3 {[%clk 0:02:35.1]} 9... d6 {[%clk
0:02:32.3]} 10. O-O {[%clk 0:02:35.7]} 10... O-O {[%clk 0:02:31.2]} 11. Rb3
{[%clk 0:02:34.1]} 11... Qf6 {[%clk 0:02:29.6]} 12. e4 {[%clk 0:02:30.2]} 12...
f4 {[%clk 0:02:01]} 13. c4 {[%clk 0:02:29.7]} 13... a6 {[%clk 0:01:57.2]} 14. a4
{[%clk 0:02:28.9]} 14... b5 {[%clk 0:01:56.6]} 15. cxb5 {[%clk 0:02:15.6]} 15...
axb5 {[%clk 0:01:54.5]} 16. axb5 {[%clk 0:02:15.7]} 16... Nd7 {[%clk 0:01:53]}
17. Nc4 {[%clk 0:02:12.9]} 17... Ne5 {[%clk 0:01:30.6]} 18. Nfxe5 {[%clk
0:02:11.4]} 18... dxe5 {[%clk 0:01:30.2]} 19. b6 {[%clk 0:02:08.1]} 19... Ba6
{[%clk 0:01:28]} 20. b7 {[%clk 0:02:00.6]} 20... Rab8 {[%clk 0:01:07]} 21. Rb6
{[%clk 0:01:59.8]} 21... Bxc4 {[%clk 0:01:03.6]} 22. Rxf6 {[%clk 0:01:59.6]}
22... Bxd3 {[%clk 0:01:03.5]} 23. Rb6 {[%clk 0:01:55.1]} 23... Bxe4 {[%clk
0:00:57.1]} 24. f3 {[%clk 0:01:51.8]} 24... Bf5 {[%clk 0:00:54.6]} 25. d6 {[%clk
0:01:41.6]} 25... Rfd8 {[%clk 0:00:50.3]} 26. Qd5 {[%clk 0:01:28.7]} 26... exd6
{[%clk 0:00:46.8]} 27. Rxd6 {[%clk 0:01:27.3]} 27... Rxd6 {[%clk 0:00:45.1]} 28.
Qxd6 {[%clk 0:01:28.2]} 28... Rxb7 {[%clk 0:00:41.7]} 29. Qd8+ {[%clk
0:01:24.1]} 29... Bf8 {[%clk 0:00:40.3]} 30. Ra1 {[%clk 0:01:16.2]} 30... Rd7
{[%clk 0:00:33.5]} 31. Qg5+ {[%clk 0:01:13.8]} 31... Bg6 {[%clk 0:00:32.3]} 32.
Ra8 {[%clk 0:01:14.5]} 32... Kg7 {[%clk 0:00:18.5]} 33. Qxe5+ {[%clk 0:01:13.6]}
33... f6 {[%clk 0:00:18.5]} 34. Qb8 {[%clk 0:01:10.9]} 34... Rf7 {[%clk
0:00:16.5]} 35. Qxf4 {[%clk 0:01:04.2]} 35... h5 {[%clk 0:00:11.8]} 36. h4
{[%clk 0:01:03.4]} 36... Rb7 {[%clk 0:00:08.6]} 37. Rb8 {[%clk 0:00:57]} 37...
Rd7 {[%clk 0:00:06.5]} 38. Qa4 {[%clk 0:00:54.5]} 38... Rc7 {[%clk 0:00:03.9]}
39. Qa8 {[%clk 0:00:46.5]} 39... Bd6 {[%clk 0:00:03.5]} 40. Rg8+ {[%clk
0:00:45.7]} 40... Kh7 {[%clk 0:00:03.4]} 41. Rh8+ {[%clk 0:00:45.9]} 41... Kg7
{[%clk 0:00:02.5]} 42. Qg8# {[%clk 0:00:44.9]} 1-0

[Event "Early-Titled-Tuesday-Blitz-February-13-2024"]
[Site "Chess.com"]
[Date "2024.02.13"]
[Round "6"]
[White "banhgiahuy2606"]
[Black "Jaka_Brilej"]
[Result "1/2-1/2"]
[WhiteElo "2693"]
[BlackElo "2543"]
[TimeControl "180+1"]
[EndTime "9:10:07 PST"]
[Termination "Game drawn by agreement"]

1. c4 {[%clk 0:03:00.9]} 1... Nf6 {[%clk 0:02:56.1]} 2. Nf3 {[%clk 0:02:59.6]}
2... g6 {[%clk 0:02:56.4]} 3. Nc3 {[%clk 0:02:58.8]} 3... Bg7 {[%clk 0:02:56.6]}
4. e4 {[%clk 0:02:59.3]} 4... d6 {[%clk 0:02:56.8]} 5. d4 {[%clk 0:02:59.2]}
5... O-O {[%clk 0:02:57]} 6. Be2 {[%clk 0:02:59.9]} 6... Nbd7 {[%clk 0:02:57.2]}
7. O-O {[%clk 0:03:00.2]} 7... e5 {[%clk 0:02:57.4]} 8. Re1 {[%clk 0:02:55.6]}
8... a6 {[%clk 0:02:42]} 9. dxe5 {[%clk 0:02:51.1]} 9... Nxe5 {[%clk 0:02:39.2]}
10. Nxe5 {[%clk 0:02:51.1]} 10... dxe5 {[%clk 0:02:40.1]} 11. Qc2 {[%clk
0:02:51.7]} 11... c6 {[%clk 0:02:34.4]} 12. c5 {[%clk 0:02:49.8]} 12... Be6
{[%clk 0:02:30.4]} 13. Be3 {[%clk 0:02:47.3]} 13... Qc7 {[%clk 0:02:30.1]} 14.
b4 {[%clk 0:02:40.5]} 14... Rad8 {[%clk 0:02:29]} 15. Rad1 {[%clk 0:02:40.5]}
15... Ng4 {[%clk 0:02:19.7]} 16. Bxg4 {[%clk 0:02:38.8]} 16... Bxg4 {[%clk
0:02:20.6]} 17. f3 {[%clk 0:02:39]} 17... Be6 {[%clk 0:02:21.1]} 18. a4 {[%clk
0:02:26]} 18... Rxd1 {[%clk 0:02:13]} 19. Rxd1 {[%clk 0:02:26]} 19... Rd8 {[%clk
0:02:13.9]} 20. Rd2 {[%clk 0:02:19.6]} 20... Bf8 {[%clk 0:02:11.6]} 21. Qd1
{[%clk 0:02:19.4]} 21... Be7 {[%clk 0:02:11.9]} 22. Rxd8+ {[%clk 0:02:18.6]}
22... Qxd8 {[%clk 0:02:12]} 23. Qxd8+ {[%clk 0:02:17]} 23... Bxd8 {[%clk
0:02:12.7]} 24. Kf2 {[%clk 0:02:16.7]} 24... Bc4 {[%clk 0:02:09.4]} 25. a5
{[%clk 0:02:13.2]} 25... f5 {[%clk 0:02:06.6]} 26. Ke1 {[%clk 0:02:12.4]} 26...
Kf7 {[%clk 0:02:06.3]} 27. Kd2 {[%clk 0:02:11.5]} 27... Bf1 {[%clk 0:02:05.7]}
28. g3 {[%clk 0:02:10.3]} 28... Ke6 {[%clk 0:02:05.6]} 29. Nd1 {[%clk
0:02:00.3]} 29... Bg2 {[%clk 0:01:50.1]} 30. exf5+ {[%clk 0:01:50.1]} 30... Kxf5
{[%clk 0:01:50.6]} 31. Ke2 {[%clk 0:01:48.1]} 31... e4 {[%clk 0:01:50.7]} 32.
fxe4+ {[%clk 0:01:37.9]} 32... Bxe4 {[%clk 0:01:51.6]} 33. Bd4 {[%clk
0:01:36.1]} 33... Bd5 {[%clk 0:01:42.5]} 34. Nf2 {[%clk 0:01:31.2]} 34... h5
{[%clk 0:01:40.4]} 35. Ke3 {[%clk 0:01:28.9]} 35... Bg5+ {[%clk 0:01:39.8]} 36.
Kd3 {[%clk 0:01:29]} 36... h4 {[%clk 0:01:31.4]} 37. g4+ {[%clk 0:01:25.5]}
37... Ke6 {[%clk 0:01:23.5]} 38. Be3 {[%clk 0:01:20]} 38... Bf6 {[%clk
0:01:10.2]} 39. Bd4 {[%clk 0:01:19.1]} 39... Be7 {[%clk 0:01:04.2]} 40. Ne4
{[%clk 0:01:15]} 40... Ba2 {[%clk 0:01:00.5]} 41. h3 {[%clk 0:01:12.6]} 41...
Bb1+ {[%clk 0:01:00]} 42. Ke3 {[%clk 0:01:10.2]} 42... Bc2 {[%clk 0:00:56.1]}
43. Nd6 {[%clk 0:01:01.2]} 43... Bxd6 {[%clk 0:00:51.2]} 44. cxd6 {[%clk
0:01:01.2]} 44... Kxd6 {[%clk 0:00:52.1]} 45. Kf4 {[%clk 0:00:57.3]} 45... Ke6
{[%clk 0:00:49.2]} 46. Kg5 {[%clk 0:00:57.1]} 46... Kf7 {[%clk 0:00:49.2]} 47.
Kxh4 {[%clk 0:00:56.4]} 47... Bd3 {[%clk 0:00:48.6]} 48. Kg5 {[%clk 0:00:56.5]}
48... Bf1 {[%clk 0:00:49.1]} 49. h4 {[%clk 0:00:56.6]} 49... Be2 {[%clk
0:00:49.5]} 50. h5 {[%clk 0:00:47.1]} 50... gxh5 {[%clk 0:00:49.2]} 51. gxh5
{[%clk 0:00:48]} 51... Kg8 {[%clk 0:00:48.7]} 52. Kg6 {[%clk 0:00:45.3]} 52...
Bd3+ {[%clk 0:00:48.4]} 53. Kf6 {[%clk 0:00:45.7]} 53... c5 {[%clk 0:00:46.8]}
54. Bxc5 {[%clk 0:00:40]} 54... Be4 {[%clk 0:00:46.5]} 55. Ke7 {[%clk
0:00:39.1]} 55... Kh7 {[%clk 0:00:46.6]} 56. Be3 {[%clk 0:00:37.8]} 56... Bc6
{[%clk 0:00:46.5]} 57. h6 {[%clk 0:00:37.9]} 57... Bf3 {[%clk 0:00:46.7]} 58.
Kd6 {[%clk 0:00:38.4]} 58... Bh1 {[%clk 0:00:46.6]} 59. Kc7 {[%clk 0:00:39.3]}
59... Bg2 {[%clk 0:00:46.6]} 60. Kb6 {[%clk 0:00:40.2]} 60... Bh1 {[%clk
0:00:46.7]} 1/2-1/2

[Event "Early-Titled-Tuesday-Blitz-February-13-2024"]
[Site "Chess.com"]
[Date "2024.02.13"]
[Round "6"]
[White "giovannibrandao7"]
[Black "secrethawk1"]
[Result "1-0"]
[WhiteElo "2263"]
[BlackElo "2475"]
[TimeControl "180+1"]
[EndTime "9:10:07 PST"]
[Termination "giovannibrandao7 won by resignation"]

1. e4 {[%clk 0:03:00.9]} 1... e6 {[%clk 0:02:32.4]} 2. d4 {[%clk 0:02:59.8]}
2... d5 {[%clk 0:02:33.3]} 3. Nd2 {[%clk 0:03:00.3]} 3... dxe4 {[%clk
0:02:29.3]} 4. Nxe4 {[%clk 0:03:01.2]} 4... Nf6 {[%clk 0:02:29.8]} 5. Bg5 {[%clk
0:02:57.6]} 5... Be7 {[%clk 0:02:27.1]} 6. Bxf6 {[%clk 0:02:57.4]} 6... Bxf6
{[%clk 0:02:28]} 7. Nf3 {[%clk 0:02:57.8]} 7... O-O {[%clk 0:02:27.7]} 8. c3
{[%clk 0:02:52.1]} 8... b6 {[%clk 0:02:26.1]} 9. Bd3 {[%clk 0:02:52]} 9... Bb7
{[%clk 0:02:13.3]} 10. O-O {[%clk 0:02:51.7]} 10... Nd7 {[%clk 0:02:12.1]} 11.
Qe2 {[%clk 0:02:51.5]} 11... Rc8 {[%clk 0:02:05.9]} 12. Rad1 {[%clk 0:02:50.9]}
12... a5 {[%clk 0:02:04.9]} 13. Rfe1 {[%clk 0:02:36.4]} 13... Qe7 {[%clk
0:02:01.5]} 14. a3 {[%clk 0:02:34.8]} 14... Rfd8 {[%clk 0:01:51.6]} 15. c4
{[%clk 0:02:28.2]} 15... Nf8 {[%clk 0:01:44.4]} 16. Nxf6+ {[%clk 0:02:24.4]}
16... Qxf6 {[%clk 0:01:45.3]} 17. Be4 {[%clk 0:02:19.1]} 17... Bxe4 {[%clk
0:01:28.6]} 18. Qxe4 {[%clk 0:02:20]} 18... Nd7 {[%clk 0:01:27.3]} 19. Ne5
{[%clk 0:02:09.5]} 19... Nxe5 {[%clk 0:01:20.4]} 20. dxe5 {[%clk 0:02:10.4]}
20... Qe7 {[%clk 0:01:18.9]} 21. Qc6 {[%clk 0:02:01.6]} 21... h6 {[%clk
0:01:11.4]} 22. g3 {[%clk 0:01:53.4]} 22... Kf8 {[%clk 0:00:55.8]} 23. Kg2
{[%clk 0:01:52.7]} 23... g6 {[%clk 0:00:51.6]} 24. h4 {[%clk 0:01:20.6]} 24...
h5 {[%clk 0:00:51.4]} 25. f3 {[%clk 0:01:03.7]} 25... Kg7 {[%clk 0:00:41]} 26.
Qe4 {[%clk 0:00:49.6]} 26... c5 {[%clk 0:00:36.7]} 27. Qf4 {[%clk 0:00:46.7]}
27... Kg8 {[%clk 0:00:33.8]} 28. Kh3 {[%clk 0:00:45.6]} 28... Rd7 {[%clk
0:00:32.3]} 29. Rd6 {[%clk 0:00:41.6]} 29... Rxd6 {[%clk 0:00:22.7]} 30. exd6
{[%clk 0:00:42.5]} 30... Qd7 {[%clk 0:00:22.4]} 31. Qe5 {[%clk 0:00:39.5]} 31...
Rf8 {[%clk 0:00:14.8]} 32. g4 {[%clk 0:00:35.2]} 32... hxg4+ {[%clk 0:00:12.1]}
33. fxg4 {[%clk 0:00:36.1]} 33... f5 {[%clk 0:00:12.4]} 34. Qxe6+ {[%clk
0:00:33.2]} 34... Qxe6 {[%clk 0:00:12.2]} 35. Rxe6 {[%clk 0:00:34.1]} 35...
fxg4+ {[%clk 0:00:12.1]} 36. Kxg4 {[%clk 0:00:35]} 36... Rd8 {[%clk 0:00:11]}
37. Rxg6+ {[%clk 0:00:32.7]} 37... Kf7 {[%clk 0:00:11.1]} 38. h5 {[%clk
0:00:33.3]} 38... Rd7 {[%clk 0:00:07.9]} 39. Kf5 {[%clk 0:00:32.2]} 39... b5
{[%clk 0:00:06.9]} 40. h6 {[%clk 0:00:32]} 40... Kf8 {[%clk 0:00:03.1]} 41. Ke6
{[%clk 0:00:31.4]} 41... Rh7 {[%clk 0:00:02.9]} 42. d7 {[%clk 0:00:30.7]} 42...
Rxd7 {[%clk 0:00:01.7]} 1-0

[Event "Early-Titled-Tuesday-Blitz-February-13-2024"]
[Site "Chess.com"]
[Date "2024.02.13"]
[Round "6"]
[White "JG-17"]
[Black "UnTucopalaTimba"]
[Result "1-0"]
[WhiteElo "2468"]
[BlackElo "1984"]
[TimeControl "180+1"]
[EndTime "9:10:07 PST"]
[Termination "JG-17 won by resignation"]

1. d4 {[%clk 0:03:00.9]} 1... Nf6 {[%clk 0:02:59.5]} 2. Nf3 {[%clk 0:02:57.8]}
2... e6 {[%clk 0:02:57.1]} 3. c4 {[%clk 0:02:58.3]} 3... d5 {[%clk 0:02:55.7]}
4. Nc3 {[%clk 0:02:57.2]} 4... Bb4 {[%clk 0:02:54.8]} 5. cxd5 {[%clk 0:02:55.7]}
5... exd5 {[%clk 0:02:53.3]} 6. e3 {[%clk 0:02:54.2]} 6... O-O {[%clk
0:02:46.1]} 7. Bd3 {[%clk 0:02:54.6]} 7... Bg4 {[%clk 0:02:43.7]} 8. O-O {[%clk
0:02:54.7]} 8... c6 {[%clk 0:02:40.2]} 9. Bd2 {[%clk 0:02:55]} 9... Nbd7 {[%clk
0:02:36]} 10. h3 {[%clk 0:02:55.1]} 10... Bh5 {[%clk 0:02:35]} 11. a3 {[%clk
0:02:52.6]} 11... Ba5 {[%clk 0:02:34]} 12. b4 {[%clk 0:02:52.8]} 12... Bc7
{[%clk 0:02:33.5]} 13. Be2 {[%clk 0:02:53.3]} 13... Re8 {[%clk 0:02:31.5]} 14.
Nh2 {[%clk 0:02:45.7]} 14... Bxh2+ {[%clk 0:02:29.4]} 15. Kxh2 {[%clk
0:02:45.6]} 15... Qc7+ {[%clk 0:02:28.8]} 16. Kg1 {[%clk 0:02:45]} 16... Bxe2
{[%clk 0:02:27.6]} 17. Nxe2 {[%clk 0:02:45.9]} 17... Ne4 {[%clk 0:02:27.2]} 18.
Rc1 {[%clk 0:02:42]} 18... Ndf6 {[%clk 0:02:24.5]} 19. Be1 {[%clk 0:02:41.7]}
19... Qe7 {[%clk 0:02:15.9]} 20. f3 {[%clk 0:02:39]} 20... Nd6 {[%clk
0:02:13.5]} 21. Bf2 {[%clk 0:02:36.1]} 21... Nc4 {[%clk 0:02:09.9]} 22. e4
{[%clk 0:02:33.9]} 22... Nxa3 {[%clk 0:01:59.7]} 23. e5 {[%clk 0:02:17.8]} 23...
Nd7 {[%clk 0:01:53.5]} 24. f4 {[%clk 0:02:05.5]} 24... Nc4 {[%clk 0:01:45.5]}
25. f5 {[%clk 0:02:01.7]} 25... Qg5 {[%clk 0:01:41.8]} 26. g4 {[%clk 0:01:45.3]}
26... h5 {[%clk 0:01:38.8]} 27. Ng3 {[%clk 0:01:41.5]} 27... h4 {[%clk 0:01:18]}
28. Nh1 {[%clk 0:01:07.5]} 28... a5 {[%clk 0:01:07.8]} 29. Qe1 {[%clk
0:01:05.1]} 29... axb4 {[%clk 0:01:05.7]} 30. Bxh4 {[%clk 0:01:04.9]} 30... Qe3+
{[%clk 0:00:53.3]} 31. Qxe3 {[%clk 0:01:05]} 31... Nxe3 {[%clk 0:00:53.4]} 32.
Rf3 {[%clk 0:01:05.3]} 32... Nc4 {[%clk 0:00:51.1]} 33. Rb3 {[%clk 0:01:04.5]}
33... Ra2 {[%clk 0:00:44.3]} 34. Rxb4 {[%clk 0:01:01.3]} 34... b5 {[%clk
0:00:43.3]} 35. Nf2 {[%clk 0:00:57.8]} 35... Rea8 {[%clk 0:00:39.6]} 36. e6
{[%clk 0:00:57.7]} 36... fxe6 {[%clk 0:00:38.9]} 37. fxe6 {[%clk 0:00:58.6]}
37... Nf6 {[%clk 0:00:38.4]} 38. g5 {[%clk 0:00:56]} 38... Ne4 {[%clk
0:00:33.3]} 39. Nxe4 {[%clk 0:00:50.1]} 39... dxe4 {[%clk 0:00:33.4]} 40. Re1
{[%clk 0:00:48.1]} 40... e3 {[%clk 0:00:31.7]} 41. g6 {[%clk 0:00:45.3]} 41...
Rd2 {[%clk 0:00:24.3]} 42. e7 {[%clk 0:00:35.3]} 42... Rxd4 {[%clk 0:00:21]} 43.
Rxe3 {[%clk 0:00:35.9]} 43... Nxe3 {[%clk 0:00:20.4]} 44. Rxd4 {[%clk
0:00:35.7]} 44... Ra1+ {[%clk 0:00:19.5]} 45. Kf2 {[%clk 0:00:32.2]} 1-0